{"text_format":"1","workbook":"xlsx","n_sheets":25,"sheets":["Start her!","Tabel 1. Øk. hoved- og nlg tal","Tabel 2. Hovedkonti","Tabel 2A.","Tabel 3. og 3a.","Tabel 5 Forvent. til kom. år","Tabel 6. Resultatopgørelse","Tabel 7. Resultatdisp","Tabel 8. Balancen","Tabel 9. Egenkapital","Tabel 10. Låneramme","Tabel 11. Lønsum","Tabel 12. Bev.regnsk.","Tabel 12A. Udgiftsbaserede hk","Tabel 13","Tabel 14. Note 2","Tabel 14A. Note 3","Tabel 15 og 16","Tabel 17-19","Tabel 20","Tabel 21","Tabel 22","Tabel 23","Tabel 24 og 25","Skabelon til suppl. noter"],"not_rendered":{"charts":0,"images":0,"macros":0,"external_links":1,"defined_names":443,"comments":1,"pivot_tables":0},"unopened":[],"bounds":{"document_bytes":16777216,"sheet_cells":100000,"rows_first":2000,"rows_last":500,"rows_between":2000,"halvings":0,"cell_chars":16384,"cell_head_chars":4096},"cells_cut":0,"cells_raw":0,"read":"whole","date_system":"1900"}

{"sheet":"Start her!","index":0,"n_rows":49,"n_cols":7,"rows_kept":49,"cut":false,"hidden":false,"merged":[]}
[null,"Årstabeller 2021"]
[null,"[Skriv institutionsnavn her]",null,"Disposition","Afsnit i årsrapport"]
[null,null,null,"Beretning og Målrapportering"]
[null,null,null,"Tabel 1. Virksomhedens økonomiske hoved og nøgletal","2.2. Ledelsesberetning"]
[null,null,null,"Tabel 2. Virksomhedens hovedkonti","2.2. Ledelsesberetning"]
[null,null,null,"Tabel 2A. Overført overskud","2.2. Ledelsesberetning"]
[null,null,null,"Tabel 3. Sammenfatning af økonomi for virksomhedens opgaver","2.3. Kerneopgaver"]
[null,null,null,"Tabel 3a. Centrale aktivitetsoplysninger","2.3 Kerneopgaver"]
[null,null,null,"Tabel 5. Forventninger til det kommende år","2.5. Forventninger til det kommende år"]
[]
[null,null,null,"Økonomitabeller"]
[null,null,null,"Tabel 6. Resultatopgørelse","3.2. Resultatopgørelse mv."]
[null,null,null,"Tabel 7. Resultatdisponering","3.2. Resultatopgørelse mv."]
[null,null,null,"Tabel 8. Balancen","3.3. Balancen"]
[null,null,null,"Tabel 9. Egenkapitalforklaring","3.4. Egenkapitalforklaring"," "]
[null,null,null,"Tabel 10.Udnyttelse af låneramme","3.5. Likviditet og låneramme"]
[null,null,null,"Tabel 11.Opfølgning på lønsumsloft","3.6. Opfølgning på lønsumsloft"]
[null,null,null,"Tabel 12. Bevillingsregnskab","3.7. Bevillingsregnskabet"]
[null,null,null,"Tabel 12A. Virksomhedens udgiftsbaserede hovedkonti","3.8. Udgiftsbaserede hovedkonti"]
[null,null,null,"Noter"]
[null,null,null,"Tabel 13. Note 1: Immaterielle anlægsaktiver (obligatorisk)","4.1. Noter til resultatopgørelse og balance"," "]
[null,null,null,"Tabel 14. Note 2: Materielle anlægsaktiver (obligatorisk)","4.1. Noter til resultatopgørelse og balance"]
[null,null,null,"Tabel 14a. Hensatte forpligtelser","4.1. Noter til resultatopgørelse og balance"]
[null,null,null,"Bilag"]
[null,null,null,"Tabel 15. Sammenfatning af elementer i prisfastsættelse","4.2. Indtægtsdækket virksomhed"]
[null,null,null,"Tabel 16. Oversigt over akkumuleret resultat for indtægtsdækket virks.","4.2. Indtægtsdækket virksomhed"]
[null,null,null,"Tabel 17. Oversigt over gebyrordninger med adm. fastsat takst ","4.3. Gebyrfinansieret virksomhed"]
[null,null,null,"Tabel 18. Oversigt over gebyrordninger med lovbestemt takst","4.3. Gebyrfinansieret virksomhed"]
[null,null,null,"Tabel 19. Andre tilskudsfinansierede aktiviteter (uk. 97)","4.4. Tilskudsfinansierede aktiviteter"]
[null,null,null,"Tabel 19a. Tilskudsfinansieret forskningsvirksomhed (uk. 95)","4.4. Tilskudsfinansierede aktiviteter"]
[null,null,null,"Tabel 20.  Oversigt over afsluttede anlægsprojekter","4.5. Forelagte investeringer",null,"[vælg mio. el. tusinder]"]
[null,null,null,"Tabel 21. Oversigt over igangværende anlægsprojekter","4.5 Forelagte investeringer",null,"1000 kr."]
[null,null,null,"Tabel 22. It-omkostninger","4.6  IT-omkostninger",null,"Mio. kr."]
[null,null,null,"Tabel 23. Tilskudsregnskab","4.7 Supplerende bilag"]
[null,null,null,"Tabel 24. Udestående tilsagn","4.7 Supplerende bilag"]
[null,null,null,"Tabel 25. Afrapportering på nøgletal for forvaltnignsopgaver","4.7 Supplerende bilag"]
[]
[null,null,null,"Supplerende noter"]
[null,null,null,"Skabelon til supplerende noter","4.7 Supplerende bilag"]
[]
[null,null,null,"Tabellerne er udfyldt i ","[vælg mio. el. tusinder]"]
[null,null,null,null," "]
[]
[]
[]
[null," "]
[]
[]
[null,null,null," "]

{"sheet":"Tabel 1. Øk. hoved- og nlg tal","index":1,"n_rows":56,"n_cols":11,"rows_kept":56,"cut":false,"hidden":false,"merged":[[31,0,31,3],[33,0,33,3],[48,0,48,3],[53,0,53,3],[40,0,40,3]]}
["Tabel 1. Virksomhedens økonomiske hoved- og nøgletal"]
["Hovedtotal"]
[{"$f":"'Start her!'!E41&\", løbende priser\"","v":"[vælg mio. el. tusinder], løbende priser"},"R-1","R-året","B-året"," "]
["Resultatopgørelse",null,null,null,null,null,null,null,null,null," "]
["Ordinære driftsindtægter",{"$f":"'Tabel 6. Resultatopgørelse'!C13","v":0},{"$f":"'Tabel 6. Resultatopgørelse'!D13","v":0},{"$f":"'Tabel 6. Resultatopgørelse'!E13","v":0}]
["- Heraf indtægtsført bevilling",{"$f":"'Tabel 6. Resultatopgørelse'!C7","v":0},{"$f":"'Tabel 6. Resultatopgørelse'!D7","v":0},{"$f":"'Tabel 6. Resultatopgørelse'!E7","v":0}]
["Ordinære driftsomkostninger",{"$f":"'Tabel 6. Resultatopgørelse'!C28","v":0},{"$f":"'Tabel 6. Resultatopgørelse'!D28","v":0},{"$f":"'Tabel 6. Resultatopgørelse'!E28","v":0}]
["Resultat af ordinær drift",{"$f":"'Tabel 6. Resultatopgørelse'!C29","v":0},{"$f":"'Tabel 6. Resultatopgørelse'!D29","v":0},{"$f":"'Tabel 6. Resultatopgørelse'!E29","v":0}]
["Resultat før finansielle poster",{"$f":"'Tabel 6. Resultatopgørelse'!C33","v":0},{"$f":"'Tabel 6. Resultatopgørelse'!D33","v":0},{"$f":"'Tabel 6. Resultatopgørelse'!E33","v":0}]
["Årets resultat",{"$f":"'Tabel 6. Resultatopgørelse'!C41","v":0},{"$f":"'Tabel 6. Resultatopgørelse'!D41","v":0},{"$f":"'Tabel 6. Resultatopgørelse'!E41","v":0}]
["Balance"]
["Anlægsaktiver",{"$f":"'Tabel 8. Balancen'!C23","v":0},{"$f":"'Tabel 8. Balancen'!D23","v":0},0]
["Omsætningsaktiver",{"$f":"'Tabel 8. Balancen'!C34","v":0},{"$f":"'Tabel 8. Balancen'!D34","v":0},0]
["Egenkapital",{"$f":"'Tabel 8. Balancen'!C46","v":0},{"$f":"'Tabel 8. Balancen'!D46","v":0},0]
["Langfristet gæld",{"$f":"'Tabel 8. Balancen'!C57","v":0},{"$f":"'Tabel 8. Balancen'!D57","v":0},0]
["Kortfristet gæld",{"$f":"'Tabel 8. Balancen'!C67","v":0},{"$f":"'Tabel 8. Balancen'!D67","v":0},0]
["Lånerammen",0,{"$f":"'Tabel 10. Låneramme'!B5","v":0},0]
["Træk på lånerammen",0,0,0]
["Finansielle nøgletal"]
["Udnyttelsesgrad af lånerammen",{"$f":"IF(B17=0, \"-\", B18/B17)","v":"-"},{"$f":"IF(C17=0, \"-\", C18/C17)","v":"-"},{"$f":"IF(D17=0, \"-\", D18/D17)","v":"-"}]
["Negativ udsvingsrate",{"$f":"IF('Tabel 8. Balancen'!C40=0, \"-\", 'Tabel 8. Balancen'!C45/'Tabel 8. Balancen'!C40)","v":"-"},{"$f":"IF('Tabel 8. Balancen'!D40=0, \"-\", 'Tabel 8. Balancen'!D45/'Tabel 8. Balancen'!D40)","v":"-"},0]
["Bevillingsandel",{"$f":"IF(B5=0, \"-\",B6/B5)","v":"-"},{"$f":"IF(C5=0, \"-\",C6/C5)","v":"-"},{"$f":"IF(D5=0, \"-\",D6/D5)","v":"-"}]
["Overskudsgrad",{"$f":"IF(B5=0, \"-\", B10/B5)","v":"-"},{"$f":"IF(C5=0, \"-\", C10/C5)","v":"-"},{"$f":"IF(D5=0, \"-\", D10/D5)","v":"-"}]
["Personaleoplysninger"]
["Antal årsværk",0,0,0]
["Årsværkspris",{"$f":"('Tabel 6. Resultatopgørelse'!C24)/B25","v":{"$error":"#DIV/0!"}},{"$f":"('Tabel 6. Resultatopgørelse'!D24)/C25","v":{"$error":"#DIV/0!"}},{"$f":"('Tabel 6. Resultatopgørelse'!E24)/D25","v":{"$error":"#DIV/0!"}}]
[]
[]
["Kopivenlig version: "]
[]
[{"$f":"A1","v":"Tabel 1. Virksomhedens økonomiske hoved- og nøgletal"}]
["Hovedtotal"]
["[vælg mio. el. tusinder], løbende priser",{"$f":"B3","v":"R-1"},{"$f":"C3","v":"R-året"},{"$f":"D3","v":"B-året"}]
["Resultatopgørelse"]
["Ordinære driftsindtægter",{"$f":"B5","v":0},0,0]
["- Heraf indtægtsført bevilling",0,0,0]
["Ordinære driftsomkostninger",0,0,0]
["Resultat af ordinær drift",0,0,0]
["Resultat før finansielle poster",0,0,0]
["Årets resultat",0,0,0]
["Balance"]
["Anlægsaktiver",{"$f":"B12","v":0},0,0]
["Omsætningsaktiver",0,0,0]
["Egenkapital",0,0,0]
["Langfristet gæld",0,0,0]
["Kortfristet gæld",0,0,0]
["Lånerammen",0,0,0]
["Træk på lånerammen",0,0,0]
["Finansielle nøgletal"]
["Udnyttelsesgrad af lånerammen",{"$f":"B20","v":"-"},"-","-"]
["Negativ udsvingsrate","-","-",0]
["Bevillingsandel","-","-","-"]
["Overskudsgrad","-","-","-"]
["Personaleoplysninger"]
["Antal årsværk",{"$f":"B25","v":0},0,0]
["Årsværkspris",{"$error":"#DIV/0!"},{"$error":"#DIV/0!"},{"$error":"#DIV/0!"}]

{"sheet":"Tabel 2. Hovedkonti","index":2,"n_rows":13,"n_cols":5,"rows_kept":13,"cut":false,"hidden":false,"merged":[[2,4,3,4],[4,1,5,1],[4,2,5,2],[4,4,5,4],[8,3,9,3],[6,3,7,3],[4,3,5,3],[2,1,3,1],[2,2,3,2],[8,1,9,1],[8,2,9,2],[8,4,9,4],[6,4,7,4],[6,1,7,1],[6,2,7,2],[2,3,3,3],[10,0,13,0],[10,1,11,1],[10,2,11,2],[6,0,9,0],[2,0,5,0],[10,4,11,4],[12,1,13,1],[12,2,13,2],[12,4,13,4],[12,3,13,3],[10,3,11,3]]}
["Tabel 2. Virksomhedens hovedkonti"]
[null,"(Mio. kr.) ","Bevilling (FL+TB)","Regnskab 20xx","Overført overskud ultimo"]
["Drift","Udgifter ",0,0,0]
[]
[null,"Indtægter",0,0,0]
[]
["Administrerede ordninger ","Udgifter",0,0,0]
[]
[null,"Indtægter",0,0,0]
[]
["Anlæg","Udgifter ",0,0,0]
[]
[null,"Indtægter",0,0,0]

{"sheet":"Tabel 2A.","index":3,"n_rows":8,"n_cols":5,"rows_kept":8,"cut":false,"hidden":false,"merged":[[0,0,0,2],[0,4,0,6],[1,0,1,1],[2,0,2,3],[3,0,3,3]]}
["Overført overskud",null,null,null,"VEJLEDNING"]
["UDSKRIFTSEGNET VERSION NEDENFOR INDTASTNINGSARKET"]
["Indsæt og slet selv linjer i tilfælde af, at der mangler/er for mange."]
["Tabel 2A. Overskud, hovedkonto [XX.XX.XX.]"]
[{"$f":"'Start her!'!E41&\"løbende, priser\"","v":"[vælg mio. el. tusinder]løbende, priser"},null,"Reserveret bevilling","Overført overskud"]
["Beholdning primo R-året",null,0,0]
["Årets øvrige bevægelser","20XX",0,0]
["Beholdning ultimo R-året",null,{"$f":"SUM(C6:C7)","v":0},{"$f":"SUM(D6:D7)","v":0}]

{"sheet":"Tabel 3. og 3a.","index":4,"n_rows":27,"n_cols":5,"rows_kept":27,"cut":false,"hidden":false,"merged":[[1,0,1,4],[0,0,0,1],[19,0,19,4]]}
[]
["Tabel 3. Sammenfatning af økonomi for virksomhedens produkter/opgaver"]
[{"$f":"'Start her!'!E41&\"løbende, priser\"","v":"[vælg mio. el. tusinder]løbende, priser"},"Bevilling (FL+TB)","Øvrige indtægter","Omkostninger","Andel af årets overskud"]
["0. Generelle fællesomkostninger",0,0,0,{"$f":"SUM(B4:C4)+D4","v":0}]
["Opgave 1",0,0,0,{"$f":"SUM(B5:C5)+D5","v":0}]
["Opgave 2",0,0,0,{"$f":"SUM(B6:C6)+D6","v":0}]
["Opgave 3",0,0,0,{"$f":"SUM(B7:C7)+D7","v":0}]
["Opgave 4",0,0,0,{"$f":"SUM(B8:C8)+D8","v":0}]
["I alt",{"$f":"SUM(B4:B8)","v":0},{"$f":"SUM(C4:C8)","v":0},{"$f":"SUM(D4:D8)","v":0},{"$f":"SUM(E4:E8)","v":0}]
[]
[null,{"$f":"B3","v":"Bevilling (FL+TB)"},{"$f":"C3","v":"Øvrige indtægter"}]
["Til fordeling ",{"$f":"'Tabel 6. Resultatopgørelse'!D7","v":0},{"$f":"SUM('Tabel 6. Resultatopgørelse'!D8:D12,'Tabel 6. Resultatopgørelse'!D31,'Tabel 6. Resultatopgørelse'!D35,'Tabel 6. Resultatopgørelse'!D39)","v":0}]
["Fordel i tabel 2",{"$f":"B9","v":0},{"$f":"C9","v":0}]
["Kontrol",{"$f":"B12-B13","v":0},{"$f":"C12-C13","v":0}]
[]
[]
[]
[]
[]
["Tabel 3a. Centrale aktivitetsoplysninger"]
[null,"20xx","20xx","20xx","20xx"]
["Aktivitet/enhed"]
["Aktivitet/enhed"]
["Aktivitet/enhed"]
["Aktivitet/enhed"]
["Aktivitet/enhed"]
["Aktivitet/enhed"]

{"sheet":"Tabel 5 Forvent. til kom. år","index":5,"n_rows":5,"n_cols":3,"rows_kept":5,"cut":false,"hidden":false,"merged":[]}
["Tabel 5. Forventninger til det kommende år"]
[null,"Regnskab (R-året)","Grundbudget (B-året) "]
["Bevilling og øvrige indtægter",0,0]
["Udgifter",0,0]
["Resultat",{"$f":"(B3+B4)","v":0},{"$f":"C3+C4","v":0}]

{"sheet":"Tabel 6. Resultatopgørelse","index":6,"n_rows":41,"n_cols":7,"rows_kept":41,"cut":false,"hidden":false,"merged":[[1,2,1,4]]}
[]
[null,"Tabel 6. Resultatopgørelse"]
[null,{"$f":"'Start her!'!E41&\", løbende priser\"","v":"[vælg mio. el. tusinder], løbende priser"},"R-1","R-året","B-året","Formler","VEJLEDNING TIL INDTASTNING - tal referer til kravspecifikation 2018"]
[null,"Ordinære driftsindtægter",null,null,null,null,"Overskrift"]
[null,"Indtægtsført bevilling",null,null,null,null,"Overskrift"]
[null,"Bevilling",0,0,0,"A",1011]
[null,"Indtægtsført bevilling i alt",{"$f":"SUM(C6)","v":0},{"$f":"SUM(D6)","v":0},{"$f":"SUM(E6)","v":0},"Sum1","Sum1=A"]
[null,"Salg af varer og tjenesteydelser",0,0,0,"D","sum af eksternt og internt salg"]
[null,"Eksternt salg af varer og tjenesteydelser",0,0,0,null,"1110-1180"]
[null,"Internt statsligt salg af varer og tjenesteydelser",0,0,0,null,"12.11,12.12,12.15"]
[null,"Tilskud til egen drift",0,0,0,"E","3115-3155, 3210-3220, 3410"]
[null,"Gebyrer",0,0,0,"F ",1311]
[null,"Ordinære driftsindtægter i alt",{"$f":"SUM(C7+C8+C11+C12)","v":0},{"$f":"SUM(D7+D8+D11+D12)","v":0},{"$f":"SUM(E7+E8+E11+E12)","v":0},"Sum2","Sum2=Sum1+D+E+F"]
[null,"Ordinære driftsomkostninger",null,null,null,null,"Overskrift"]
[null,"Ændring i lagre",0,0,0,"H","1511-1515"]
[null,"Forbrugsomkostninger",null,null,null,null,"Overskrift"]
[null,"Husleje",0,0,0,"I","1610-1630"]
[null,"Forbrugsomkostninger i alt",{"$f":"C17","v":0},{"$f":"D17","v":0},{"$f":"E17","v":0},"Sum3","Sum3=I"]
[null,"Personaleomkostninger",null,null,null,null,"Overskrift"]
[null,"Lønninger",0,0,0,"K","1805-1868, 1920"]
[null,"Andre personaleomkostninger",0,0,0,"L","1871-1878, 4423-4425"]
[null,"Pension",0,0,0,"M","1881-1883, 4421"]
[null,"Lønrefusion",0,0,0,"N","1887-1892"]
[null,"Personaleomkostninger i alt",{"$f":"SUM(C20:C23)","v":0},{"$f":"SUM(D20:D23)","v":0},{"$f":"SUM(E20:E23)","v":0},"Sum4","Sum4=K+L+M+N"]
[null,"Af- og nedskrivninger",0,0,0,"O","2010-2050"]
[null,"Internt køb af varer og tjenesteydelser",0,0,0,"P","17.11,17.12,17.15"]
[null,"Andre ordinære driftsomkostninger",0,0,0,"Q","1940, 2205-2280, 4110-4195, 4210-4220, 4531-4535"]
[null,"Ordinære driftsomkostninger i alt",{"$f":"C15+C18+C24+C25+C26+C27","v":0},{"$f":"D15+D18+D24+D25+D26+D27","v":0},{"$f":"E15+E18+E24+E25+E26+E27","v":0},"Sum5","Sum5=h+sum3+sum4+P+Q"]
[null,"Resultat af ordinær drift",{"$f":"C13+C28","v":0},{"$f":"D13+D28","v":0},{"$f":"E13+E28","v":0},"Sum6","Sum6=Sum2+Sum5"]
[null,"Andre driftsposter",null,null,null,null,"Overskrift"]
[null,"Andre driftsindtægter",0,0,0,"R","2110-2140, 2190, 3003-3097, 3310"]
[null,"Andre driftsomkostninger",0,0,0,"S","2290, 22.94, 2295, 4310, 44.26, 44.27, 4641-4655"]
[null,"Resultat før finansielle poster",{"$f":"C29+C31+C32","v":0},{"$f":"D29+D31+D32","v":0},{"$f":"E29+E31+E32","v":0},"Sum7","Sum7=Sum6+Sum5"]
[null,"Finansielle poster",null,null,null,null,"Overskrift"]
[null,"Finansielle indtægter",0,0,0,"T","2502-2594"]
[null,"Finansielle omkostninger",0,0,0,"U","2291, 2602-2694"]
[null,"Resultat før ekstraordinære poster",{"$f":"C33+C35+C36","v":0},{"$f":"D33+D35+D36","v":0},{"$f":"E33+E35+E36","v":0},"Sum8","Sum8=sum7+T+U"]
[null,"Ekstraordinære poster",null,null,null,null,"Overskrift"]
[null,"Ekstraordinære indtægter",0,0,0,"V",2805]
[null,"Ekstraordinære omkostninger",0,0,0,"X",2905]
[null,"Årets resultat",{"$f":"C37+C39+C40","v":0},{"$f":"D37+D39+D40","v":0},{"$f":"E37+E39+E40","v":0},"Sum9","Sum9=Sum8+V+X"]

{"sheet":"Tabel 7. Resultatdisp","index":7,"n_rows":10,"n_cols":4,"rows_kept":10,"cut":false,"hidden":false,"merged":[]}
["Tabel 7. Resultatdisponering"]
[{"$f":"'Start her!'!E41&\", løbende priser\"","v":"[vælg mio. el. tusinder], løbende priser"},null,"R-året","VEJLEDNING TIL INDTASTNING - tal referer til kravspecifikation 2018"]
["Note:","Disponeret til bortfald",{"$f":"'Tabel 9. Egenkapital'!D18","v":0},7311]
[null,"Disponeret til reserveret egenkapital",{"$f":"'Tabel 9. Egenkapital'!D13","v":0},7211]
[null,"Disponeret udbytte til statskassen",{"$f":"'Tabel 9. Egenkapital'!D19","v":0},7350]
[null,"Disponeret til overført overskud",{"$f":"'Tabel 9. Egenkapital'!D17","v":0},"7406, 7407, 7412, 7413"]
[]
["*","Fordeling af årets resultat",{"$f":"-'Tabel 6. Resultatopgørelse'!D41","v":0}]
[null,"Fordelt i tabel 6",{"$f":"C3+C4+C5+C6","v":0}]
[null,"Kontrol",{"$f":"C8-C9","v":0}]

{"sheet":"Tabel 8. Balancen","index":8,"n_rows":69,"n_cols":15,"rows_kept":69,"cut":false,"hidden":false,"merged":[[0,4,0,5],[3,0,3,1],[0,0,0,1],[2,0,2,6]]}
["Tabel 8: Balancen"]
[]
["NB: Der skal kun indtastes tal i de turkise celler. For så vidt angår regnskabstal dannes balancen ved at udfylde de obligatoriske noter og indtaste tal. I arket 'supplerende noter' kan man udarbejde tabeller til mellemregninger vedr. de balanceposter ultimo året, der ikke er omfattet af en obligatorisk note. Denne tabelskabelon kan endvidere anvendes til at opstille yderligere noter til balancen, skulle dette være nødvendigt. Der skal ikke indtastes tal i de grå celler. Alle tal indtastes fortegnsneutralt (dvs. som positive tal). Se til højre for udskriftsvenlig version.",null,null,null,null,null,null,"Tabel 8. Balance"]
[{"$f":"\"Aktiver \"&'Start her!'!E41","v":"Aktiver [vælg mio. el. tusinder]"},null,"R-1","R-året","FORMEL","VEJLEDNING TIL INDTASTNING - Tal refererer til kravspecifikationen fra 2018",null,{"$f":"A4","v":"Aktiver [vælg mio. el. tusinder]"},null,{"$f":"C4","v":"R-1"},{"$f":"D4","v":"R-året"},"Passiver",null,{"$f":"J4","v":"R-1"},{"$f":"K4","v":"R-året"}]
["Note:",null,null,null,null,null,null,{"$f":"A5","v":"Note:"},null,null,null,{"$f":"A5","v":"Note:"}]
[null,"Anlægsaktiver",null,null,null,null,null,null,"Anlægsaktiver:",null,null,null,{"$f":"B39","v":"Egenkapital"}]
[1,"Immaterielle anlægsaktiver",null,null,null,"Overskrift. Til de immaterielle anlægsaktiver knyttes en obligatorisk note 1, der beskriver bevægelsen i året. Ved at udfylde noten bliver regnskabskolonnen for R-året automatisk udfyldt.",null,{"$f":"A7","v":1},"Immaterielle anlægsaktiver",null,null,null,"Reguleret egenkapital (startkapital)",{"$f":"C40","v":0},0]
[null,"Færdiggjorte udviklingsprojekter",0,{"$f":"'Tabel 13'!C17","v":0},"A","5012-5017",null,null,{"$f":"B8","v":"Færdiggjorte udviklingsprojekter"},{"$f":"C8","v":0},{"$f":"D8","v":0},null,"Opskrivninger",0,0]
[null,"Erhvervede koncenssioner, patenter, licenser m.v.",0,{"$f":"'Tabel 13'!D17","v":0},"B","5032-5037",null,null,{"$f":"B9","v":"Erhvervede koncenssioner, patenter, licenser m.v."},{"$f":"C9","v":0},{"$f":"D9","v":0},null,"Reserveret egenkapital",0,0]
[null,"Udviklingsprojekter under opførelse",0,{"$f":"'Tabel 13'!C29","v":0},"C","5052-5054",null,null,{"$f":"B10","v":"Udviklingsprojekter under opførelse"},0,{"$f":"D10","v":0},null,"Bortfald og kontoændringer",0,0]
[null,"Immaterielle anlægsaktiver i alt",{"$f":"SUM(C8:C10)","v":0},{"$f":"SUM(D8:D10)","v":0},"Sum1","Sum1 = A + B + C",null,null,"Immaterielle anlægsaktiver i alt",0,0,null,"Udbytte til staten",0,0]
[2,"Materielle anlægsaktiver",null,null,null,"Overskrift. Til de materielle anlægsaktiver knyttes en obligatorisk note 2, der beskriver bevægelsen i året. Ved at udfylde noten bliver regnskabskolonnen for R-året automatisk udfyldt.",null,{"$f":"A12","v":2},"Materielle anlægsaktiver",null,null,null,"Overført overskud",0,0]
[null,"Grunde, arealer og bygninger",0,{"$f":"'Tabel 14. Note 2'!B14","v":0},"D","5112-5117, 5132-5138",null,null,"Grunde, arealer og bygninger",0,{"$f":"D13","v":0},null,"Egenkapital i alt",0,0]
[null,"Infrastruktur",0,{"$f":"'Tabel 14. Note 2'!C14","v":0},"E","5142-5147",null,null,"Infrastruktur",0,0,null,{"$f":"B49","v":"Hensatte forpligtelser"},{"$f":"C49","v":0},{"$f":"D49","v":0}]
[null,"Transportmateriel",0,{"$f":"'Tabel 14. Note 2'!E14","v":0},"F","5152-5157",null,null,"Transportmateriel",0,0]
[null,"Produktionsanlæg og maskiner",0,{"$f":"'Tabel 14. Note 2'!D14","v":0},"G","5162-5167",null,null,"Produktionsanlæg og maskiner",0,0,null,{"$f":"B52","v":"Langfristede gældsposter"}]
[null,"Inventar og IT-udstyr",0,{"$f":"'Tabel 14. Note 2'!F14","v":0},"H","5172-5177, 5182-5187",null,null,"Inventar og IT-udstyr",0,0,null,"FF4 Langfristet gæld",{"$f":"C53","v":0},0]
[null,"Igangværende arbejder for egen regning",0,{"$f":"'Tabel 14. Note 2'!D27","v":0},"I","5122-5128",null,null,"Igangværende arbejder for egen regning",0,0,null,"Donationer",0,0]
[null,"Materielle anlægsaktiver i alt",{"$f":"SUM(C13:C18)","v":0},{"$f":"SUM(D13:D18)","v":0},"Sum2","Sum2 = D + E + F + G + H + I",null,null,"Materielle anlægsaktiver i alt",{"$f":"C19","v":0},0,null,"Prioritets gæld ",0,0]
[null,"Statsforskrivning",0,0,"J",5317,null,null,{"$f":"B20","v":"Statsforskrivning"},{"$f":"C20","v":0},0,null,"Anden langfristet gæld",0,0]
[null,"Øvrige finansielle anlægsaktiver",0,0,"K","5416-5424, 5512, 55.13, 55.14, 5518, 55.19",null,null,{"$f":"B21","v":"Øvrige finansielle anlægsaktiver"},{"$f":"C21","v":0},0,null,"Langfristet gæld i alt",0,0]
[null,"Finansielle anlægsaktiver i alt",{"$f":"SUM(C20:C21)","v":0},{"$f":"SUM(D20:D21)","v":0},"Sum3","Sum3 = J + K",null,null,{"$f":"B22","v":"Finansielle anlægsaktiver i alt"},{"$f":"C22","v":0},0]
[null,"Anlægsaktiver i alt",{"$f":"C11+C19+C22","v":0},{"$f":"D11+D19+D22","v":0},"Sum4","Sum4 = Sum1 + Sum2 + Sum3",null,null,"Anlægsaktiver i alt",{"$f":"C23","v":0},0]
[null,"Omsætningsaktiver",null,null,null,"Overskrift",null,null,{"$f":"B24","v":"Omsætningsaktiver"}]
[null,"Varebeholdning",0,0,"L","6011-6015, 6031-6035, 6070-6090",null,null,{"$f":"B25","v":"Varebeholdning"},{"$f":"C25","v":0},{"$f":"D25","v":0},null,{"$f":"B60","v":"Kortfristede gældsposter"}]
[null,"Tilgodehavender",0,0,"M","6102-6174, 6187-6188,6195-6197",null,null,{"$f":"B26","v":"Tilgodehavender"},{"$f":"C26","v":0},{"$f":"D26","v":0},null,{"$f":"B61","v":"Leverandører af vare og tjenesteydelser"},{"$f":"C61","v":0},{"$f":"D61","v":0}]
[null,"Periodeafgrænsningsposter",0,0,"N","6190, 6191",null,null,{"$f":"B27","v":"Periodeafgrænsningsposter"},{"$f":"C27","v":0},{"$f":"D27","v":0}]
[null,"Værdipapirer",0,0,"O","5812-5844, 5902-5904",null,null,"Værdipapirer",0,0,null,{"$f":"B62","v":"Anden kortfristet gæld"},{"$f":"C62","v":0},{"$f":"D62","v":0}]
[null,"Likvide beholdninger",null,null,null,"Overskrift. Evt. negative poster optages på passivsiden under anden kortfristet gæld.",null,null,"Likvide beholdninger",0,0,null,"Skyldige feriepenge",{"$f":"C63","v":0},0]
[null,"FF5 Uforrentet konto",0,0,"P",6211,null,null,"FF5 Uforrentet konto",0,0]
[null,"FF7 Finansieringskonto",0,0,"Q",6231,null,null,"FF7 Finansieringskonto",0,0,null,"Igangværende arbejder for fremmed regning, forpligtelser",0,0]
[null,"Andre likvider",0,0,"R","6331-6334, 6341-6348, 6361, 6365, 6367, 6371-6393",null,null,"Andre likvider",0,0,null,"Periodeafgrænsningsposter, forpligtelser",0,0]
[null,"Likvide beholdninger i alt",{"$f":"SUM(C30:C32)","v":0},{"$f":"SUM(D30:D32)","v":0},"Sum5","Sum5 = P + Q + R",null,null,"Likvide beholdninger i alt",0,0,null,"Kortfristet gæld i alt",0,0]
[null,"Omsætningsaktiver i alt",{"$f":"SUM(C25:C28)+C33","v":0},{"$f":"SUM(D25:D28)+D33","v":0},"Sum6","Sum6 = L + M + N + O + Sum5",null,null,"Omsætningsaktiver i alt",{"$f":"C34","v":0},{"$f":"D34","v":0},null,"Gældsforpligtelser i alt",0,0]
[null,"Aktiver i alt",{"$f":"C23+C34","v":0},{"$f":"D23+D34","v":0},"AKTIVER","AKTIVER = Sum4 + Sum6",null,null,"Aktiver i alt",{"$f":"C35","v":0},{"$f":"D35","v":0},null,"Passiver i alt",0,0]
[]
[null,null,"Primo ","Ultimo","FORMEL","VEJLEDNING TIL INDTASTNING"]
[null,{"$f":"\"Passiver \"&'Start her!'!E41","v":"Passiver [vælg mio. el. tusinder]"},{"$f":"C5","v":0},{"$f":"D5","v":0}]
[null,"Egenkapital",null,null,null,"Til egenkapitalen knyttes en uddybende tabel (tabel 8) , der beskriver bevægelsen i året. "]
[null,"Reguleret egenkapital (startkapital)",0,0,"R",7012]
[null,"Opskrivninger",0,0,"S","7102-7124"]
[null,"Reserveret egenkapital",0,0,"T",7211]
[null,"Bortfald og kontoændringer",0,0,"T1","7311, 7314,7315,7412,7413,7414 og 7415"]
[null,"Udbytte til staten",0,0,"T2",7350]
[null,"Overført overskud",0,0,"U","Standardkonti: 10-20, 25-34, 41-46 Regnskabskonti: 2100-2190,2200-2291, 2295, 2681, 7403, 7406, 7407 og 7411"]
[null,"Egenkapital i alt",{"$f":"SUM(C40:C45)","v":0},{"$f":"SUM(D40:D45)","v":0},"Sum7","Sum7 = R + S + T + T1 + T2 + U"]
[]
[]
[null,"Hensatte forpligtelser",0,0,"V","7611-7617"]
[]
[]
[null,"Langfristede gældsposter",null,null,null,"Overskrift"]
[null,"FF4 Langfristet gæld",0,0,"W","8621 og 8641"]
[null,"Donationer",0,0,"Æ","8730, 8744 og 8748  "]
[null,"Prioritets gæld ",0,0,"Y","8412, 8422, 8432, 8442, 8502"]
[null,"Anden langfristet gæld",null,null,"Z","8414, 84.20, 8424, 8434, 8444, 8504, 85.20 "]
[null,"Langfristet gæld i alt",{"$f":"SUM(C53:C56)","v":0},{"$f":"SUM(D53:D56)","v":0},"Sum8","Sum8 = W + X + Y + Z + Æ"]
[]
[]
[null,"Kortfristede gældsposter",null,null,null,"Overskrift. Evt. positive poster optages på aktivsiden under likvide beholdninger."]
[null,"Leverandører af vare og tjenesteydelser",0,0,"Ø","9511-9520"]
[null,"Anden kortfristet gæld",0,0,"Å","7795, 77.97, 9705-9772, 9778, 9781-9794, 9870-9893"]
[null,"Skyldige feriepenge",0,0,"AA","9410 og 9411"]
[null,"Reserveret bevilling",0,0,"AC","7511, 7512, 7513, 7514 og 7515"]
[null,"Igangværende arbejder for fremmed regning, forpligtelser",0,0,"AB","9341-9345"]
[null,"Periodeafgrænsningsposter, forpligtelser",0,0,"AD",9690]
[null,"Kortfristet gæld i alt",{"$f":"SUM(C61:C66)","v":0},{"$f":"SUM(D61:D66)","v":0},"Sum9","Sum9 = Ø + Å + AA + AB + AC + AD"]
[null,"Gældsforpligtelser i alt",{"$f":"C57+C67","v":0},{"$f":"D57+D67","v":0},"Sum10","Sum10 = Sum8 + Sum9"]
[null,"Passiver i alt",{"$f":"C46+C49+C68","v":0},{"$f":"D46+D49+D68","v":0},"PASSIVER","PASSIVER = Sum7 + V + Sum10"]

{"sheet":"Tabel 9. Egenkapital","index":9,"n_rows":25,"n_cols":6,"rows_kept":25,"cut":false,"hidden":false,"merged":[[1,0,1,1]]}
["Tabel 9. Egenkapitalforklaring"]
[null,null,null,null,"FORMEL","VEJLEDNING TIL INDTASTNING tal referer til kravspecifikationerne 2018"]
["Note:",{"$f":"'Start her!'!E41&\", løbende priser\"","v":"[vælg mio. el. tusinder], løbende priser"},"R-1","R-året"]
[null,"Egenkapital primo R-året",0,0]
[null,"Startkapital primo",0,0,"A",7012]
[null,"+Ændring i startkapital",0,0,"B",7012]
[null,"Startkapital ultimo",{"$f":"SUM(C5:C6)","v":0},{"$f":"SUM(D5:D6)","v":0},"Startkapital ultimo",7012]
[null,"Opskrivninger primo",0,0,"C","7102-7124"]
[null,"+Ændringer i opskrivninger",0,0,"D","7102-7124"]
[null,"Opskrivninger ultimo",{"$f":"SUM(C8:C9)","v":0},{"$f":"SUM(D8:D9)","v":0},"Opskrivninger ultimo","7102-7124"]
[null,"Reserveret egenkapital primo",0,0,"E",7211]
[null,"+Ændring i reserveret egenkapital",0,0,"F",7211]
[null,"Reserveret egenkapital ultimo",{"$f":"SUM(C11:C12)","v":0},{"$f":"SUM(D11:D12)","v":0},"Reserveret egenkapital ultiomo",7211]
[null,"Overført overskud primo",0,0,"G","7403, 7406, 7407, 7411"]
[null,"+Primoregulering/flytning mellem bogføringskredse",0,0,"H",7412]
[null,"+Regulering af det overførte overskud",0,0,"I",7413]
[null,"+Overført fra årets resultat",0,0,"J","Standardkonti: 10-20, 25-30, 32-34, 41-46 Regnskabskonti: 2100-2190, 2200-2291, 22.94, 2295, 3115-3155"]
[null,"- Bortfald af årets resultat",0,0,"K",7311]
[null,"- Udbytte til staten",0,0,"L",7350]
[null,"Overført overskud ultimo",{"$f":"SUM(C14:C19)","v":0},{"$f":"SUM(D14:D19)","v":0},"overført overskud ultimo","7403, 7406, 7407, "]
[null,"Egenkapital ultimo",{"$f":"SUM(C20,C13,C10,C7)","v":0},{"$f":"SUM(D20,D13,D10,D7)","v":0},null,"SUM = Startkapital ultimo + opskrivninger ultimo + reserveret egenkapital ultimo + overført overskudultimo"]
[null,"*Egenkapital ultimo jf. balancen (tabel 8) ",0,0,"*se forklaring","Standardkonti: 70, 71, 72, 73 og 74"]
["*","Til fordeling af overført overskud (fra balance)",null,{"$f":"'Tabel 8. Balancen'!D45","v":0}]
[null,"Fordelt i tabel 8",null,{"$f":"D14+D15+D16+D17+D19+D18","v":0}]
[null,"Kontrol",null,{"$f":"D23-D24","v":0}]

{"sheet":"Tabel 10. Låneramme","index":10,"n_rows":6,"n_cols":2,"rows_kept":6,"cut":false,"hidden":false,"merged":[]}
[]
["Tabel 10. Udnyttelse af låneramme"]
[{"$f":"'Start her!'!E41&\", løbende priser\"","v":"[vælg mio. el. tusinder], løbende priser"},"R-året"]
["Sum af imm. og mat. anlægsaktiver (undt. donationer) pr. 31. december 2018",{"$f":"'Tabel 8. Balancen'!D11+'Tabel 8. Balancen'!D19-'Tabel 8. Balancen'!D54","v":0}]
["Låneramme pr. 31. december R-året",0]
["Udnyttelsesgrad i procent",{"$f":"IF(B5=0, \"-\", B4/B5)","v":"-"}]

{"sheet":"Tabel 11. Lønsum","index":11,"n_rows":9,"n_cols":2,"rows_kept":9,"cut":false,"hidden":false,"merged":[[5,3,5,14],[1,0,1,1]]}
[]
["Tabel 11. Opfølgning på lønsumsloft [§ XX.XX.XX.]"]
[{"$f":"'Start her!'!E41&\", løbende priser\"","v":"[vælg mio. el. tusinder], løbende priser"},"R-året"]
["Lønsumsloft FL",0]
["Lønsumsloft inkl. TB/aktstykker",0]
["Lønforbrug under lønsumsloft",0]
["Difference (mindreforbrug)",{"$f":"B5-B6","v":0}]
["Akkumuleret opsparing ultimo forrige år",0]
["Akkumuleret opsparing ultimo indeværende år",{"$f":"B7+B8","v":0}]

{"sheet":"Tabel 12. Bev.regnsk.","index":12,"n_rows":20,"n_cols":8,"rows_kept":20,"cut":false,"hidden":false,"merged":[[2,0,2,7],[12,0,12,7],[13,0,14,0],[13,1,14,1],[13,2,14,2],[8,0,9,0],[3,0,4,0],[3,1,4,1],[3,2,4,2],[5,0,6,0],[5,1,6,1],[15,0,16,0],[15,1,16,1],[15,2,16,2],[7,0,7,7],[5,2,6,2],[10,0,11,0],[8,1,9,1],[8,2,9,2],[10,1,11,1],[10,2,11,2]]}
["Tabel 12. Bevillingsregnskab"]
["Hovedkonto","Navn","Bevillingstype","Mio kr.","Bevilling","Regnskab","Afvigelse","Videreførelse Ultimo"]
["Drift"]
["xx.xx.xx",null,null,"Udgifter"]
[null,null,null,"Indtægter"]
["yy.yy.yy",null,null,"Udgifter"]
[null,null,null,"Indtægter"]
["Administrerede ordninger"]
["vv.vv.vv",null,null,"Udgifter"]
[null,null,null,"Indtægter"]
["zz.zz.zz",null,null,"Udgifter"]
[null,null,null,"Indtægter"]
["Anlæg "]
["aa.aa.aa",null,null,"Udgifter"]
[null,null,null,"Indtægter"]
["bb.bb.bb",null,null,"Udgifter"]
[null,null,null,"Indtægter"]
[]
[]
["Kontrolberegning",null,null,null,null,null,null,{"$f":"#REF!-#REF!","v":{"$error":"#REF!"}}]

{"sheet":"Tabel 12A. Udgiftsbaserede hk","index":13,"n_rows":5,"n_cols":6,"rows_kept":5,"cut":false,"hidden":false,"merged":[[2,0,3,0]]}
["Tabel 12A. Udgiftsbaserede hovedkonti (§ XX.XX.XX.)"]
["Hovedkonto ","Navn","Bevillingstype","(Mio. kr.)","Bevilling","Regnskab"]
["XX.XX.XX",null,null,"Udgifter "]
[null,null,null,"Indtægter "]
["YY.YY.YY",null,null,"Udgifter "]

{"sheet":"Tabel 13","index":14,"n_rows":29,"n_cols":16,"rows_kept":29,"cut":false,"hidden":false,"merged":[[5,15,6,15],[22,13,23,13],[22,14,23,15],[5,14,6,14],[1,0,1,9],[5,0,6,0],[5,3,6,3],[5,4,6,4],[5,13,6,13],[5,2,6,2],[5,6,6,6],[22,4,23,4],[22,2,23,2],[5,9,6,9]]}
["Tabel 13-23",null,null,null,null,null,null,null,null,null,null,null,"Udskriftsegnede noter"]
[]
[]
[]
["Tabel 13 - Note 1: Immaterielle anlægsaktiver",null,null,null,null,null,null,null,null,null,null,null,"Tabel 13 - Note 1: Immaterielle anlægsaktiver"]
[{"$f":"'Start her!'!E41&\", løbende priser\"","v":"[vælg mio. el. tusinder], løbende priser"},null,"Færdiggjorte udviklings-projekter","Erhvervede koncessioner, patenter, licenser mv.","I alt",null,null,null,null,null,null,null,{"$f":"A6","v":"[vælg mio. el. tusinder], løbende priser"},"Færdiggjorte udviklings-projekter","Erhvervede koncessioner, patenter, licenser mv.","I alt"]
[]
["Primobeholdning",null,0,0,{"$f":"SUM(C8:D8)","v":0},null,null,null,null,null,null,null,{"$f":"A8","v":"Primobeholdning"},{"$f":"C8","v":0},{"$f":"D8","v":0},{"$f":"E8","v":0}]
["Opskrivning",null,0,0,{"$f":"SUM(C9:D9)","v":0},null,null,null,null,null,null,null,"Opskrivning",0,0,0]
["Kostpris pr. 1.1.20xx (før afskr.)",null,{"$f":"SUM(C8:C9)","v":0},{"$f":"SUM(D8:D9)","v":0},{"$f":"SUM(E8:E9)","v":0},null,null,null,null,null,null,null,"Kostpris pr. 1.1.20xx (før afskr.)",0,0,0]
["Tilgang",null,0,0,{"$f":"C11+D11","v":0},null,null,null,null,null,null,null,"Tilgang",0,0,0]
["Afgang",null,0,0,0,null,null,null,null,null,null,null,"Afgang",0,0,0]
["Kostpris pr. 31.12.20xx (før afskr.)",null,{"$f":"C10+C11-C12","v":0},{"$f":"D10+D11-D12","v":0},0,null,null,null,null,null,null,null,"Kostpris pr. 31.12.20xx (før afskr.)",0,0,0]
["Akk. afskrivninger",null,0,0,0,null,null,null,null,null,null,null,"Akk. afskrivninger",0,0,0]
["Akk. nedskrivninger",null,0,0,0,null,null,null,null,null,null,null,"Akk. nedskrivninger",0,0,0]
["Akk. af- og nedskrivninger 31.12.20xx",null,{"$f":"C14+C15","v":0},{"$f":"D14+D15","v":0},0,null,null,null,null,null,null,null,"Akk. af- og nedskrivninger 31.12.20xx",0,0,0]
["Regnskabsmæssig værdi pr. 31.12.20xx",null,{"$f":"C13-C16","v":0},{"$f":"D13-D16","v":0},{"$f":"E13-E16","v":0},null,null,null,null,null,null,null,"Regnskabsmæssig værdi pr. 31.12.20xx",0,0,0]
["Årets afskrivninger",null,0,0,{"$f":"C18+D18","v":0},null,null,null,null,null,null,null,"Årets afskrivninger",0,0,0]
["Årets nedskrivninger",null,0,0,{"$f":"C19+D19","v":0},null,null,null,null,null,null,null,"Årets nedskrivninger",0,0,0]
["Årets af- og nedskrivninger",null,{"$f":"C18+C19","v":0},{"$f":"D18+D19","v":0},{"$f":"C20+D20","v":0},null,null,null,null,null,null,null,"Årets af- og nedskrivninger",0,0,0]
["Afskrivningsperiode/år",null,"Antal år","Antal år",null,null,null,null,null,null,null,null,"Afskrivningsperiode/år","Antal år",{"$f":"D21","v":"Antal år"}]
[]
[null,null,"Udviklings-projekter under opførelse",null,null,null,null,null,null,null,null,null,null,null,"Udviklings-projekter under opførelse"]
[]
["Primosaldo pr. 1.1 20xx",null,{"$f":"'Tabel 8. Balancen'!C10","v":0},null,null,null,null,null,null,null,null,null,{"$f":"A25","v":"Primosaldo pr. 1.1 20xx"},null,null,{"$f":"C25","v":0}]
["Tilgang",null,0,null,null,null,null,null,null,null,null,null,{"$f":"A26","v":"Tilgang"},null,null,{"$f":"C26","v":0}]
["Nedskrivninger",null,0,null,null,null,null,null,null,null,null,null,{"$f":"A27","v":"Nedskrivninger"},null,null,{"$f":"C27","v":0}]
["Afgang",null,0,null,null,null,null,null,null,null,null,null,{"$f":"A28","v":"Afgang"},null,null,{"$f":"C28","v":0}]
["Kostpris pr. 31.12.20xx",null,{"$f":"C25+C26-C27-C28","v":0},null,null,null,null,null,null,null,null,null,{"$f":"A29","v":"Kostpris pr. 31.12.20xx"},null,null,{"$f":"C29","v":0}]

{"sheet":"Tabel 14. Note 2","index":15,"n_rows":27,"n_cols":25,"rows_kept":27,"cut":false,"hidden":false,"merged":[[20,4,21,4],[22,18,22,19],[20,23,21,24],[20,2,21,3],[2,18,3,18],[2,19,3,19],[2,20,3,20],[2,21,3,21],[2,22,3,22],[2,23,3,23],[2,24,3,24],[2,6,3,6],[2,5,3,5],[2,0,3,0],[2,1,3,1],[2,2,3,2],[2,3,3,3],[2,4,3,4]]}
[]
["Tabel 14 - Note 2: Materielle anlægsaktiver",null,null,null,null,null,null,null,null,null,null,null,null,null,null,null,null,null,"Tabel 14 - Note 2: Materielle anlægsaktiver"]
[{"$f":"'Start her!'!E41","v":"[vælg mio. el. tusinder]"},"Grunde, arealer og bygninger","Infrastruktur","Produktionsanlæg og maskiner","Transportmateriel","Inventar og IT-udstyr","I alt",null,null,null,null,null,null,null,null,null,null,null,{"$f":"A3","v":"[vælg mio. el. tusinder]"},"Grunde, arealer og bygninger","Infrastruktur","Produktionsanlæg og maskiner","Transportmateriel","Inventar og IT-udstyr","I alt"]
[]
["Primobeholdning",0,0,0,0,0,{"$f":"SUM(B5:F5)","v":0},null,null,null,null,null,null,null,null,null,null,null,{"$f":"A5","v":"Primobeholdning"},{"$f":"B5","v":0},{"$f":"C5","v":0},0,0,0,0]
["Opskrivning",0,0,0,0,0,{"$f":"SUM(B6:F6)","v":0},null,null,null,null,null,null,null,null,null,null,null,{"$f":"A6","v":"Opskrivning"},{"$f":"B6","v":0},{"$f":"C6","v":0},{"$f":"D6","v":0},{"$f":"E6","v":0},{"$f":"F6","v":0},{"$f":"G6","v":0}]
["Kostpris pr. 1.1.20xx (før afskr.)",{"$f":"B5+B6","v":0},{"$f":"C5+C6","v":0},{"$f":"D5+D6","v":0},{"$f":"E5+E6","v":0},{"$f":"F5+F6","v":0},{"$f":"SUM(B7:F7)","v":0},null,null,null,null,null,null,null,null,null,null,null,"Kostpris pr. 1.1.20xx (før afskr.)",0,0,0,0,0,0]
["Tilgang",0,0,0,0,0,0,null,null,null,null,null,null,null,null,null,null,null,"Tilgang",0,0,0,0,0,0]
["Afgang",0,0,0,0,0,0,null,null,null,null,null,null,null,null,null,null,null,"Afgang",0,0,0,0,0,0]
["Kostpris pr. 31.12.20xx (før afskr.)",{"$f":"B7+B8-B9","v":0},{"$f":"C7+C8-C9","v":0},{"$f":"D7+D8-D9","v":0},{"$f":"E7+E8-E9","v":0},{"$f":"F7+F8-F9","v":0},0,null,null,null,null,null,null,null,null,null,null,null,"Kostpris pr. 31.12.20xx (før afskr.)",0,0,0,0,0,0]
["Akk. afskrivninger",0,0,0,0,0,0,null,null,null,null,null,null,null,null,null,null,null,"Akk. afskrivninger",0,0,0,0,0,0]
["Akk. nedskrivninger",0,0,0,0,0,0,null,null,null,null,null,null,null,null,null,null,null,"Akk. nedskrivninger",0,0,0,0,0,0]
["Akk. af- og nedskrivninger 31.12.20xx",{"$f":"B11+B12","v":0},{"$f":"C11+C12","v":0},{"$f":"D11+D12","v":0},{"$f":"E11+E12","v":0},{"$f":"F11+F12","v":0},0,null,null,null,null,null,null,null,null,null,null,null,"Akk. af- og nedskrivninger 31.12.20xx",0,0,0,0,0,0]
["Regnskabsmæssig værdi pr. 31.12.20xx",{"$f":"B10-B13","v":0},{"$f":"C10-C13","v":0},{"$f":"D10-D13","v":0},{"$f":"E10-E13","v":0},{"$f":"F10-F13","v":0},0,null,null,null,null,null,null,null,null,null,null,null,"Regnskabsmæssig værdi pr. 31.12.20xx",0,0,0,0,0,0]
["Årets afskrivninger",0,0,0,0,0,0,null,null,null,null,null,null,null,null,null,null,null,"Årets afskrivninger",0,0,0,0,0,0]
["Årets nedskrivninger",0,0,0,0,0,0,null,null,null,null,null,null,null,null,null,null,null,"Årets nedskrivninger",0,0,0,0,0,0]
["Årets af- og nedskrivninger",{"$f":"B15+B16","v":0},{"$f":"C15+C16","v":0},{"$f":"D15+D16","v":0},{"$f":"E15+E16","v":0},{"$f":"F15+F16","v":0},0,null,null,null,null,null,null,null,null,null,null,null,"Årets af- og nedskrivninger",0,0,0,0,0,0]
["Afskrivningsperiode/år","antal år","antal år","antal år","antal år","antal år",null,null,null,null,null,null,null,null,null,null,null,null,"Afskrivningsperiode/år","antal år","antal år","antal år","antal år","antal år",0]
[]
[]
[null,null,"I gang-værende arbejder for egen regning",null,null,null,null,null,null,null,null,null,null,null,null,null,null,null,null,null,null,null,null,"I gang-værende arbejder for egen regning"]
[]
["Primosaldo pr. 01.01.20xx",null,null,{"$f":"'Tabel 8. Balancen'!C18","v":0},null,null,null,null,null,null,null,null,null,null,null,null,null,null,{"$f":"A23","v":"Primosaldo pr. 01.01.20xx"},null,null,null,null,null,{"$f":"D23","v":0}]
["Tilgang",null,null,0,null,null,null,null,null,null,null,null,null,null,null,null,null,null,"Tilgang",null,null,null,null,null,{"$f":"D24","v":0}]
["Nedskrivninger",null,null,0,null,null,null,null,null,null,null,null,null,null,null,null,null,null,"Nedskrivninger",null,null,null,null,null,{"$f":"D25","v":0}]
["Afgang",null,null,0,null,null,null,null,null,null,null,null,null,null,null,null,null,null,"Overført til færdige materielle anlægsaktiver",null,null,null,null,null,0]
["Kostpris pr. 31.12.20xx",null,null,{"$f":"D23+D24-D25-D26","v":0},null,null,null,null,null,null,null,null,null,null,null,null,null,null,{"$f":"A27","v":"Kostpris pr. 31.12.20xx"},null,null,null,null,null,0]

{"sheet":"Tabel 14A. Note 3","index":16,"n_rows":7,"n_cols":2,"rows_kept":7,"cut":false,"hidden":false,"merged":[]}
["Tabel 14A Note 3. Hensatte forpligtelser"]
[{"$f":"'Start her!'!E$41","v":"[vælg mio. el. tusinder]"}]
["Hensat i 2020 til","Beløb"]
["Formål 1",0]
["Formål 2",0]
["Formål 3",0]
["Hensættelser i alt",{"$f":"B4+B5+B6","v":0}]

{"sheet":"Tabel 15 og 16","index":17,"n_rows":17,"n_cols":5,"rows_kept":17,"cut":false,"hidden":false,"merged":[]}
[]
["Tabel 15. Sammenfatning af elementer i prisfastsættelse"]
[null,"Ultimo","Ultimo","Ultimo","Ultimo"]
[{"$f":"\"Løbende priser, \"&'Start her!'!E$41","v":"Løbende priser, [vælg mio. el. tusinder]"},"R-3","R-2","R-1","R-året"]
["Institutionens direkte omkostninger i alt",0,0,0,0]
["Institutionens indirekte omkostninger i alt",0,0,0,0]
["Øvrige indregnede omkostninger",0,0,0,0]
["Sum",0,0,0,0]
["Indtægter i alt",0,0,0,0]
[]
[]
["Tabel 16. Oversigt over akkumuleret resultat af indtægtsdækket virksomhed"]
[null,"Ultimo","Ultimo","Ultimo","Ultimo"]
[{"$f":"\"Løbende priser, \"&'Start her!'!E$41","v":"Løbende priser, [vælg mio. el. tusinder]"},"R-3","R-2","R-1","R-året"]
["Efteruddannelseskurser",0,0,0,0]
["Konsulentydelser",0,0,0,0]
[null,0,0,0,0]

{"sheet":"Tabel 17-19","index":18,"n_rows":27,"n_cols":6,"rows_kept":27,"cut":false,"hidden":false,"merged":[[2,1,2,5],[2,12,2,16],[10,1,10,5]]}
[]
["Tabel 17. Oversigt over gebyrordninger med adm. fastsat takst "]
[null,"Årets resultat"]
[{"$f":"\"Løbende priser, \"&'Start her!'!E$41","v":"Løbende priser, [vælg mio. el. tusinder]"},"R-3","R-2","R-1","R-året","I alt"]
["Gebyrprovenu",0,0,0,0,{"$f":"SUM(B5:E5)","v":0}]
["Omkostninger",0,0,0,0,{"$f":"SUM(B6:E6)","v":0}]
["Resultat",0,0,0,0,{"$f":"SUM(B7:E7)","v":0}]
[]
[]
["Tabel 18. Oversigt over gebyrordninger med lovbestemt takst"]
[null,"Årets resultat"]
[{"$f":"\"Løbende priser, \"&'Start her!'!E$41","v":"Løbende priser, [vælg mio. el. tusinder]"},"R-3","R-2","R-1","R-året","I alt"]
["Gebyrprovenu",0,0,0,0,{"$f":"SUM(B13:E13)","v":0}]
[null,0,0,0,0,{"$f":"SUM(B14:E14)","v":0}]
[]
[]
["Tabel 19a. Tilskudsfinansieret forskningsvirksomhed (uk. 95)"]
[{"$f":"\"Løbende priser, \"&'Start her!'!E$41","v":"Løbende priser, [vælg mio. el. tusinder]"},"Overført overskud fra tidligere år","Årets tilskud","Årets udgifter","Årets resultat","Overskud til videreførsel"]
["navn, ordning",0,0,0,0,0]
["navn, ordning",0,0,0,0,0]
["I alt",{"$f":"SUM(B19:B20)","v":0},{"$f":"SUM(C19:C20)","v":0},{"$f":"SUM(D19:D20)","v":0},{"$f":"SUM(E19:E20)","v":0},{"$f":"SUM(F19:F20)","v":0}]
[]
["Tabel 19. Andre tilskudsfinansierede aktiviteter (uk. 97)"]
[{"$f":"\"Løbende priser, \"&'Start her!'!E$41","v":"Løbende priser, [vælg mio. el. tusinder]"},"Overført overskud fra tidligere år","Årets tilskud","Årets udgifter","Årets resultat","Overskud til videreførsel"]
["Navn, ordning",0,0,0,0,0]
["Navn, ordning",0,0,0,0,0]
["I alt",{"$f":"SUM(B25:B26)","v":0},{"$f":"SUM(C25:C26)","v":0},{"$f":"SUM(D25:D26)","v":0},{"$f":"SUM(E25:E26)","v":0},{"$f":"SUM(F25:F26)","v":0}]

{"sheet":"Tabel 20","index":19,"n_rows":7,"n_cols":7,"rows_kept":7,"cut":false,"hidden":false,"merged":[]}
[]
["Tabel 20. Oversigt over afsluttede anlægsprojekter"]
[{"$f":"'Start her!'!E$41","v":"[vælg mio. el. tusinder]"}]
["Afsluttede anlægsprojekt","Senest forelagt","Byggestart","Forventet afslutning ved byggestart","Faktisk afslutningstidspunkt","Godkendt budgetteret totaludgift","Faktisk totaludgift"]
["Projekt 1, FL-underkonto",null,"dato","dato","dato",0,0]
["Projekt 2, FL-underkonto",null,"dato","dato","dato",0,0]
["Projekt 3, FL-underkonto",null,"dato","dato","dato",0,0]

{"sheet":"Tabel 21","index":20,"n_rows":7,"n_cols":6,"rows_kept":7,"cut":false,"hidden":false,"merged":[]}
[]
["Tabel 21. Oversigt over igangværende anlægsprojekter"]
[{"$f":"'Start her!'!E$41","v":"[vælg mio. el. tusinder]"}]
["Igangværende anlægsprojekt","Senest forelagt","Byggestart","Afholdte udgifter i alt","Afholdte udgifter, indeværende år","Godkendt totaludgift"]
["Projekt 1, FL-underkonto",null,"dato","dato",0,0]
["Projekt 2, FL-underkonto",null,"dato","dato",0,0]
["Projekt 3, FL-underkonto",null,"dato","dato",0,0]

{"sheet":"Tabel 22","index":21,"n_rows":9,"n_cols":2,"rows_kept":9,"cut":false,"hidden":false,"merged":[]}
[]
["Tabel 22. It-omkostninger, mio. kr. "]
["Sammensætning",{"$f":"\"\"&'Start her!'!E$41","v":"[vælg mio. el. tusinder]"}]
["Interne personaleomkostninger til it (it-drift/-vedligehold/-udvikling) ",0]
["It-systemdrift",0]
["It-vedligehold",0]
["It-udviklingsomkostninger",0]
["Udgifter til it-varer til forbrug",0]
["i alt",{"$f":"SUM(B4:B8)","v":0}]

{"sheet":"Tabel 23","index":22,"n_rows":7,"n_cols":10,"rows_kept":7,"cut":false,"hidden":false,"merged":[]}
[]
["Tabel 23. Tilskudsregnskab"]
[{"$f":"'Start her!'!E$41","v":"[vælg mio. el. tusinder]"},null,null,null,null,null,null,"20xx"]
["Tilskud","Overført overskud fra tidligere år","Årets tilskud","Disponibel ramme i alt ","Regnskab","Årets resultat","Overskud til videreførsel, ultimo","Overskud videreførsel, primo","Bevilling","Disponibel ramme"]
[null,0,0,{"$f":"B5+C5","v":0},0,{"$f":"C5-E5","v":0},0,{"$f":"G5","v":0},0,0]
[null,0,0,{"$f":"B6+C6","v":0},0,{"$f":"C6-E6","v":0},0,{"$f":"G6","v":0},0,0]
[null,0,0,{"$f":"B7+C7","v":0},0,{"$f":"C7-E7","v":0},0,{"$f":"G7","v":0},0,0]

{"sheet":"Tabel 24 og 25","index":23,"n_rows":15,"n_cols":5,"rows_kept":15,"cut":false,"hidden":false,"merged":[[2,14,3,14],[2,15,3,15],[10,1,11,1],[10,2,11,2],[10,3,11,3],[10,4,11,4],[2,1,3,1],[2,2,3,2],[2,3,3,3],[2,4,3,4],[2,12,3,12],[2,13,3,13]]}
[]
["Tabel 24. Udestående tilsagn"]
["Hovedkonto","Primo-beholdning","Tilgang i året","Afgang i året","Ultimo-beholdning"]
[{"$f":"'Start her!'!E$41","v":"[vælg mio. el. tusinder]"}]
["Hovedkonto 1",0,0,0,0]
["Hovedkonto 2",0,0,0,0]
["Hovedkonto 3",0,0,0,0]
[]
[]
["Tabel 25. Afrapportering på nøgletal for forvaltningsopgaver"]
["Nøgletal","R20xx","R20xx","R20xx","R20xx"]
[{"$f":"'Start her!'!E$41","v":"[vælg mio. el. tusinder]"}]
["Nøgletal x",0,0,0,0]
["Nøgletal x",0,0,0,0]
["Nøgletal x",0,0,0,0]

{"sheet":"Skabelon til suppl. noter","index":24,"n_rows":21,"n_cols":13,"rows_kept":21,"cut":false,"hidden":false,"merged":[[16,1,17,1],[16,2,17,2],[16,3,17,3],[16,4,17,4],[16,5,17,5],[16,12,17,12],[16,8,17,8],[16,9,17,9],[16,10,17,10],[16,11,17,11]]}
["Supplerende noter",null,null,null,null,null,null,"Udskriftegnet version"]
[]
["Supplerende noter til resultatopgørelsen",null,null,null," "]
[null,null,"Forklaring:"]
["[Overskrift]",null,null,null,null,null,null,{"$f":"A5","v":"[Overskrift]"}]
[{"$f":"'Start her!'!E41","v":"[vælg mio. el. tusinder]"},null,null,null,null,null,null,{"$f":"A6","v":"[vælg mio. el. tusinder]"}]
[null,null,null,null,null,null,null,0,null,null,null,null,{"$f":"B7","v":0}]
[null,null,null,null,null,null,null,0,null,null,null,null,0]
[null,null,null,null,null,null,null,0,null,null,null,null,0]
[null,null,null,null,null,null,null,0,null,null,null,null,0]
[null,null,null,null,null,null,null,0,null,null,null,null,0]
["I alt",null,null,null,null,null,null,{"$f":"A12","v":"I alt"},null,null,null,null,0]
[]
[]
[]
["Note x: Personaleomkostninger",null,null,null,null,null,null,{"$f":"A16","v":"Note x: Personaleomkostninger"}]
["årsværk/antal","Regnskab 2016","Regnskab 2017","Regnskab 2018","Regnskab 2019","Budget 2020",null,{"$f":"A17","v":"årsværk/antal"},{"$f":"B17","v":"Regnskab 2016"},{"$f":"C17","v":"Regnskab 2017"},{"$f":"D17","v":"Regnskab 2018"},{"$f":"E17","v":"Regnskab 2019"},{"$f":"F17","v":"Budget 2020"}]
[]
["Antal årsværk",0,0,0,0,0,null,"Antal årsværk",{"$f":"B19","v":0},0,{"$f":"D19","v":0},0,0]
["Tilgang af medarbejdere (antal)",0,0,0,0,0,null,"Tilgang af medarbejdere",0,0,0,0,0]
["Afgang af medarbejdere (antal)",0,0,0,0,0,null,"Afgang af medarbejdere",0,0,0,0,0]